[Event "HUN-ch Rapid 2019"]
[Site "Ajka"]
[Date "2019.07.21"]
[Round "12.6"]
[White "Balog, Imre"]
[Black "Egresi, Mate"]
[Result "1-0"]
[ECO "D23"]
[WhiteElo "2566"]
[BlackElo "2341"]
[Annotator "ChessBase"]
[PlyCount "87"]
[EventDate "2019.07.18"]
[EventType "swiss"]
[EventCountry "HUN"]
[SourceTitle "playchess.com"]
[Source "ChessBase"]
[SourceQuality "1"]
[TimeControl "1200+5"]

1. d4 {[%emt 0:00:07]} d5 {[%emt 0:00:01]} 2. Nf3 {[%emt 0:00:02]} Nf6 {[%emt 0:00:02]} 3. c4 {[%emt 0:00:02]} dxc4 {[%emt 0:00:01]} 4. Qa4+ {[%emt 0:00:03]} c6 {[%emt 0:00:18]} 5. Qxc4 {[%emt 0:00:04]} e6 {[%emt 0:00:16]} 6. Bg5 {[%emt 0:00:21]} Be7 {[%emt 0:00:14]} 7. e3 {[%emt 0:00:20]} O-O {[%emt 0:01:00]} 8. Bd3 {[%emt 0:00:17]} b6 {[%emt 0:00:42]} 9. Qc2 {[%emt 0:00:19]} h6 {[%emt 0:00:14]} 10. Bh4 {[%emt 0:00:51]} Bb7 {[%emt 0:00:04]} 11. Nc3 {[%emt 0:00:02]} Nbd7 {[%emt 0:00:34]} 12. Rd1 {[%emt 0:00:04]} Nd5 {[%emt 0:00:36]} 13. Bxe7 {[%emt 0:01:40]} Qxe7 {[%emt 0:00:03]} 14. Nxd5 {[%emt 0:00:02]} exd5 {[%emt 0:00:10]} 15. O-O {[%emt 0:00:06]} c5 {[%emt 0:00:24]} 16. Bh7+ {[%emt 0:00:02]} Kh8 {[%emt 0:00:02]} 17. Bf5 {[%emt 0:00:02]} Nf6 {[%emt 0:00:51]} 18. Ne5 {[%emt 0:00:02]} Bc8 {[%emt 0:00:24]} 19. Rfe1 {[%emt 0:01:09]} Bxf5 {[%emt 0:00:23]} 20. Qxf5 {[%emt 0:00:03]} Kg8 {[%emt 0:01:21]} 21. h3 {[%emt 0:01:10]} Rac8 {[%emt 0:00:07]} 22. dxc5 {[%emt 0:00:23]} bxc5 {[%emt 0:01:52]} 23. Nd3 {[%emt 0:00:04]} Qb7 {[%emt 0:00:19]} 24. Re2 {[%emt 0:00:45]} Rfd8 {[%emt 0:00:14]} 25. Rc2 {[%emt 0:00:08]} Qb6 {[%emt 0:01:07]} 26. Nf4 {[%emt 0:00:14]} Qb7 {[%emt 0:00:38]} 27. Rcd2 {[%emt 0:00:16]} c4 {[%emt 0:02:23]} 28. Nxd5 {[%emt 0:00:09]} Nxd5 {[%emt 0:00:02]} 29. Rxd5 {[%emt 0:00:02]} Rxd5 {[%emt 0:00:01]} 30. Rxd5 {[%emt 0:00:05]} g6 {[%emt 0:01:00]} 31. Qe5 {[%emt 0:00:10]} Rb8 {[%emt 0:00:32]} 32. Qd4 {[%emt 0:00:33]} Qb6 {[%emt 0:00:15]} 33. Qe5 {[%emt 0:00:53]} Rd8 {[%emt 0:00:45]} 34. e4 {[%emt 0:00:56]} Rc8 {[%emt 0:00:38]} 35. Rd7 {[%emt 0:00:18]} a5 {[%emt 0:00:41]} 36. Qd5 {[%emt 0:00:43]} Qf6 {[%emt 0:00:17]} 37. Rd6 {[%emt 0:01:01]} Qg5 {[%emt 0:00:44]} 38. Qd4 {[%emt 0:02:57]} a4 {[%emt 0:01:34]} 39. Qc3 {[%emt 0:00:23]} Qf4 {[%emt 0:00:36]} 40. Rd4 {[%emt 0:00:02]} Qc7 {[%emt 0:00:11]} 41. e5 {[%emt 0:00:34]} Kh7 {[%emt 0:00:10]} 42. Rd6 {[%emt 0:01:00]} Qc5 {[%emt 0:00:10]} 43. Qf3 {[%emt 0:01:05]} Rc7 {[%emt 0:00:03]} 44. Qf6 {[%emt 0:00:26]} 1-0

[Event "HUN-ch Rapid 2019"]
[Site "Ajka"]
[Date "2019.07.21"]
[Round "12.7"]
[White "Medvegy, Zoltan"]
[Black "Horvath, Peter"]
[Result "0-1"]
[ECO "A13"]
[WhiteElo "2539"]
[BlackElo "2418"]
[Annotator "ChessBase"]
[PlyCount "100"]
[EventDate "2019.07.18"]
[EventType "swiss"]
[EventCountry "HUN"]
[SourceTitle "playchess.com"]
[Source "ChessBase"]
[SourceQuality "1"]
[TimeControl "1200+5"]

1. c4 {[%emt 0:00:01]} e6 {[%emt 0:00:03]} 2. g3 {[%emt 0:00:01]} d5 {[%emt 0:00:04]} 3. Bg2 {[%emt 0:00:04]} Nf6 {[%emt 0:00:05]} 4. Nf3 {[%emt 0:00:01]} d4 {[%emt 0:00:10]} 5. e3 {[%emt 0:00:30]} c5 {[%emt 0:00:35]} 6. exd4 {[%emt 0:00:02]} cxd4 {[%emt 0:00:03]} 7. O-O {[%emt 0:00:06]} Nc6 {[%emt 0:00:06]} 8. d3 {[%emt 0:00:08]} Be7 {[%emt 0:00:10]} 9. Re1 {[%emt 0:00:24]} O-O {[%emt 0:00:09]} 10. Na3 {[%emt 0:00:04]} Ne8 {[%emt 0:01:54]} 11. Nc2 {[%emt 0:00:04]} a5 {[%emt 0:00:40]} 12. Ne5 {[%emt 0:00:36]} Nxe5 {[%emt 0:00:22]} 13. Rxe5 {[%emt 0:00:02]} f6 {[%emt 0:00:12]} 14. Re1 {[%emt 0:00:15]} Rb8 {[%emt 0:01:00]} 15. Na3 {[%emt 0:02:29]} Nc7 {[%emt 0:00:23]} 16. Qh5 {[%emt 0:01:34]} b6 {[%emt 0:01:00]} 17. Be4 {[%emt 0:01:21]} f5 {[%emt 0:00:18]} 18. Bg2 {[%emt 0:00:03]} Bb7 {[%emt 0:00:40]} 19. Bf4 {[%emt 0:00:25]} Bxg2 {[%emt 0:00:22]} 20. Kxg2 {[%emt 0:00:01]} Bd6 {[%emt 0:00:24]} 21. Be5 {[%emt 0:00:20]} f4 {[%emt 0:03:35]} 22. gxf4 {[%emt 0:03:40]} Rf5 {[%emt 0:00:20]} 23. Qg4 {[%emt 0:00:10]} Qd7 {[%emt 0:00:21]} 24. Re4 {[%emt 0:01:10]} Rbf8 {[%emt 0:00:38]} 25. Rf1 {[%emt 0:01:22]} Qe7 {[%emt 0:02:01]} 26. h4 {[%emt 0:01:52]} Bxe5 {[%emt 0:00:47]} 27. fxe5 {[%emt 0:00:06]} Qb4 {[%emt 0:00:01]} 28. Qe2 {[%emt 0:01:03]} Na6 {[%emt 0:02:23]} 29. Nc2 {[%emt 0:00:43]} Qe7 {[%emt 0:01:15]} 30. Nxd4 {[%emt 0:00:17]} Rf4 {[%emt 0:00:01]} 31. Rxf4 {[%emt 0:00:59]} Rxf4 {[%emt 0:00:01]} 32. Nf3 {[%emt 0:00:01]} Qf7 {[%emt 0:00:14]} 33. Rh1 {[%emt 0:01:02]} Qg6+ {[%emt 0:00:26]} 34. Kf1 {[%emt 0:00:03]} Qf5 35. Ne1 {[%emt 0:00:42]} Nc5 {[%emt 0:00:29]} 36. h5 {[%emt 0:00:57]} h6 {[%emt 0:00:12]} 37. Qe3 {[%emt 0:00:12]} Nd7 {[%emt 0:00:27]} 38. Ng2 {[%emt 0:00:09]} Rf3 {[%emt 0:00:12]} 39. Nh4 {[%emt 0:00:07]} Rxe3 {[%emt 0:00:15]} 40. Nxf5 {[%emt 0:00:01]} Rxd3 {[%emt 0:00:01]} 41. Ne3 {[%emt 0:00:12]} Rd2 {[%emt 0:00:13]} 42. f4 {[%emt 0:00:04]} Rxb2 {[%emt 0:00:13]} 43. Rg1 {[%emt 0:00:02]} Rxa2 {[%emt 0:00:11]} 44. Rg6 {[%emt 0:00:06]} Nf8 {[%emt 0:00:15]} 45. Rg3 {[%emt 0:00:02]} Kf7 {[%emt 0:00:09]} 46. f5 {[%emt 0:00:09]} a4 {[%emt 0:00:01]} 47. fxe6+ {[%emt 0:00:05]} Nxe6 {[%emt 0:00:02]} 48. Nd5 {[%emt 0:00:02]} a3 {[%emt 0:00:14]} 49. Rf3+ {[%emt 0:00:08]} Ke8 {[%emt 0:00:07]} 50. Nb4 {[%emt 0:00:06]} Rb2 {[%emt 0:00:05]} 0-1

[Event "HUN-ch Rapid 2019"]
[Site "Ajka"]
[Date "2019.07.21"]
[Round "12.8"]
[White "Kovacsy, Barnabas"]
[Black "Mihok, Oliver"]
[Result "0-1"]
[ECO "B32"]
[WhiteElo "2087"]
[BlackElo "2550"]
[Annotator "ChessBase"]
[PlyCount "68"]
[EventDate "2019.07.18"]
[EventType "swiss"]
[EventCountry "HUN"]
[SourceTitle "playchess.com"]
[Source "ChessBase"]
[SourceQuality "1"]
[TimeControl "1200+5"]

1. e4 {[%emt 0:00:02]} c5 {[%emt 0:00:01]} 2. Nf3 {[%emt 0:00:01]} Nc6 {[%emt 0:00:00]} 3. d4 {[%emt 0:00:01]} cxd4 {[%emt 0:00:02]} 4. Nxd4 {[%emt 0:00:01]} Qb6 {[%emt 0:00:04]} 5. Nb3 {[%emt 0:00:02]} Nf6 {[%emt 0:00:02]} 6. Nc3 {[%emt 0:00:02]} e6 {[%emt 0:00:01]} 7. Qe2 {[%emt 0:00:02]} Bb4 {[%emt 0:00:13]} 8. Bd2 {[%emt 0:00:03]} O-O {[%emt 0:00:16]} 9. O-O-O {[%emt 0:00:15]} d5 {[%emt 0:00:33]} 10. exd5 {[%emt 0:01:18]} exd5 {[%emt 0:00:21]} 11. a3 {[%emt 0:00:27]} Re8 {[%emt 0:02:20]} 12. Nxd5 {[%emt 0:01:39]} Bxd2+ {[%emt 0:05:09]} 13. Qxd2 {[%emt 0:00:16]} Nxd5 {[%emt 0:00:16]} 14. Qxd5 {[%emt 0:00:25]} Qxf2 {[%emt 0:02:05]} 15. Bd3 {[%emt 0:04:07]} Be6 {[%emt 0:00:38]} 16. Qc5 {[%emt 0:00:20]} Qxg2 {[%emt 0:01:18]} 17. Rhg1 {[%emt 0:00:33]} Qh3 {[%emt 0:00:33]} 18. Rxg7+ {[%emt 0:03:57]} Kxg7 {[%emt 0:00:26]} 19. Rg1+ {[%emt 0:00:03]} Bg4 {[%emt 0:01:29]} 20. Qg5+ {[%emt 0:00:01]} Kf8 {[%emt 0:00:00]} 21. Rxg4 {[%emt 0:00:09]} Qe3+ {[%emt 0:00:19]} 22. Qxe3 {[%emt 0:00:13]} Rxe3 {[%emt 0:00:01]} 23. Bxh7 {[%emt 0:00:27]} Ke7 {[%emt 0:00:08]} 24. Kd2 {[%emt 0:01:00]} Rh3 {[%emt 0:00:20]} 25. Bd3 {[%emt 0:00:10]} Rxh2+ {[%emt 0:00:11]} 26. Kc3 {[%emt 0:00:01]} Rc8 {[%emt 0:00:27]} 27. Re4+ {[%emt 0:00:53]} Kd6 {[%emt 0:00:19]} 28. Nd4 {[%emt 0:00:32]} Ne5+ {[%emt 0:01:01]} 29. Kb3 {[%emt 0:00:01]} Nxd3 {[%emt 0:00:07]} 30. cxd3 {[%emt 0:00:04]} Rc5 {[%emt 0:00:34]} 31. a4 {[%emt 0:01:19]} a6 {[%emt 0:00:47]} 32. Nf3 {[%emt 0:00:48]} Rh3 {[%emt 0:00:18]} 33. Rf4 {[%emt 0:00:02]} f5 {[%emt 0:00:18]} 34. d4 {[%emt 0:00:17]} Rc1 {[%emt 0:00:13]} 0-1

[Event "HUN-ch Rapid 2019"]
[Site "Ajka"]
[Date "2019.07.21"]
[Round "12.9"]
[White "Karacsonyi, Gellert"]
[Black "Videki, Sandor"]
[Result "0-1"]
[ECO "B56"]
[WhiteElo "2315"]
[BlackElo "2401"]
[Annotator "NA"]
[PlyCount "132"]
[EventDate "2019.07.18"]
[EventType "swiss"]
[EventCountry "HUN"]
[SourceTitle "playchess.com"]
[Source "ChessBase"]
[SourceQuality "1"]
[TimeControl "1200+5"]

1. e4 c5 2. Nf3 Nc6 3. d4 cxd4 4. Nxd4 Nf6 5. Nc3 d6 6. f3 e5 7. Nb3 a5 8. Bb5 Be7 9. Be3 O-O 10. Qd2 Be6 11. O-O-O Na7 12. Bxa7 Rxa7 13. Qf2 Ra8 14. Kb1 Qc7 15. h4 Nd7 16. Bxd7 Qxd7 17. Nc5 Qc6 18. Nxe6 fxe6 19. a4 Rad8 20. Rhe1 Bf6 21. g4 Rd7 22. Rd3 Bd8 23. Red1 Bb6 24. Qd2 Bc5 25. Nb5 Bb4 26. Qe2 Qb6 27. Qg2 {[%emt 0:12:47]} Qd8 28. g5 Rf4 29. h5 Qe7 30. g6 h6 31. c3 Bc5 32. Qd2 Rf8 33. b4 axb4 34. cxb4 Bd4 35. Nxd4 exd4 36. Rxd4 d5 37. exd5 e5 38. Rc4 Qf6 39. Qd3 b5 40. Rc6 Qh4 41. Qxb5 Qxh5 42. Qd3 Rdd8 43. Rc3 Rf4 44. d6 Rxb4+ 45. Rb3 Rd4 46. Qc2 Rxd1+ 47. Qxd1 Qxg6+ 48. Qd3 Rxd6 49. Qxg6 Rxg6 50. a5 Ra6 51. Rb5 Rf6 52. Rxe5 Rxf3 53. Kb2 Rf6 54. Rb5 Kh7 55. Rb6 Rf5 56. a6 Ra5 57. Kb3 h5 58. Kb4 Ra1 59. Kc5 h4 60. Rb4 Rxa6 61. Rxh4+ Kg6 62. Rg4+ Kf6 63. Kd5 Ra5+ 64. Kd6 g5 65. Rg1 Kf5 66. Rf1+ Ke4 {[%emt 0:24:39]} 0-1

[Event "HUN-ch Rapid 2019"]
[Site "Ajka"]
[Date "2019.07.21"]
[Round "12.10"]
[White "Ruck, Robert"]
[Black "Kiss, Pal"]
[Result "1-0"]
[ECO "A07"]
[WhiteElo "2524"]
[BlackElo "2278"]
[Annotator "ChessBase"]
[PlyCount "73"]
[EventDate "2019.07.18"]
[EventType "swiss"]
[EventCountry "HUN"]
[SourceTitle "playchess.com"]
[Source "ChessBase"]
[SourceQuality "1"]
[TimeControl "1200+5"]

1. Nf3 {[%emt 0:00:03]} d5 {[%emt 0:00:03]} 2. g3 {[%emt 0:00:02]} Nf6 {[%emt 0:00:03]} 3. Bg2 {[%emt 0:00:01]} c6 {[%emt 0:00:01]} 4. O-O {[%emt 0:00:02]} Bg4 {[%emt 0:00:04]} 5. c4 {[%emt 0:00:02]} e6 {[%emt 0:00:02]} 6. d3 {[%emt 0:00:08]} Nbd7 {[%emt 0:00:02]} 7. cxd5 {[%emt 0:00:01]} cxd5 {[%emt 0:00:03]} 8. Nc3 {[%emt 0:00:15]} Be7 {[%emt 0:00:07]} 9. Qb3 {[%emt 0:00:07]} O-O {[%emt 0:01:02]} 10. Be3 {[%emt 0:00:26]} Bxf3 {[%emt 0:01:06]} 11. Bxf3 {[%emt 0:00:13]} Ne5 {[%emt 0:00:26]} 12. Qxb7 {[%emt 0:01:20]} Nxf3+ {[%emt 0:00:26]} 13. exf3 {[%emt 0:00:02]} d4 {[%emt 0:06:17]} 14. Bxd4 {[%emt 0:00:16]} Qxd4 {[%emt 0:00:24]} 15. Qxe7 {[%emt 0:00:03]} Qxd3 {[%emt 0:00:16]} 16. Kg2 {[%emt 0:00:29]} Rfb8 {[%emt 0:03:52]} 17. Rfd1 {[%emt 0:03:14]} Qa6 {[%emt 0:02:19]} 18. Rd2 {[%emt 0:01:06]} Re8 {[%emt 0:00:41]} 19. Qc5 {[%emt 0:03:22]} Rec8 {[%emt 0:00:14]} 20. Qe5 {[%emt 0:00:09]} h6 {[%emt 0:00:14]} 21. Rad1 {[%emt 0:00:12]} Qb7 {[%emt 0:00:12]} 22. b3 {[%emt 0:03:04]} Qc6 {[%emt 0:00:39]} 23. Rd3 {[%emt 0:00:22]} Qb7 {[%emt 0:00:21]} 24. h4 {[%emt 0:01:38]} Qc6 {[%emt 0:00:49]} 25. Qf4 {[%emt 0:00:28]} Qb6 {[%emt 0:01:05]} 26. g4 {[%emt 0:01:03]} Qa5 {[%emt 0:00:02]} 27. g5 {[%emt 0:02:39]} hxg5 {[%emt 0:00:04]} 28. hxg5 {[%emt 0:00:01]} Nh5 {[%emt 0:00:06]} 29. Qg4 {[%emt 0:00:45]} g6 {[%emt 0:00:24]} 30. Ne4 {[%emt 0:00:06]} Qe5 {[%emt 0:00:05]} 31. Rd7 {[%emt 0:00:18]} Kg7 {[%emt 0:00:32]} 32. Kg1 {[%emt 0:00:14]} a5 {[%emt 0:00:10]} 33. Nd6 {[%emt 0:00:09]} Rf8 {[%emt 0:00:02]} 34. Qd4 {[%emt 0:00:02]} Qxd4 35. Rxd4 {[%emt 0:00:01]} Rad8 {[%emt 0:00:22]} 36. Rxd8 {[%emt 0:00:02]} Rxd8 37. Nf5+ 1-0

[Event "HUN-ch Rapid 2019"]
[Site "Ajka"]
[Date "2019.07.21"]
[Round "12.11"]
[White "Jakab, Attila"]
[Black "Farago, Sandor"]
[Result "1-0"]
[ECO "E70"]
[WhiteElo "2377"]
[BlackElo "2210"]
[Annotator "NA"]
[PlyCount "89"]
[EventDate "2019.07.18"]
[EventType "swiss"]
[EventCountry "HUN"]
[SourceTitle "playchess.com"]
[Source "ChessBase"]
[SourceQuality "1"]
[TimeControl "1200+5"]

1. d4 {[%emt 0:00:40]} Nf6 {[%emt 0:00:01]} 2. c4 {[%emt 0:00:02]} g6 {[%emt 0:00:02]} 3. Nc3 {[%emt 0:00:02]} Bg7 {[%emt 0:00:02]} 4. e4 {[%emt 0:00:02]} d6 {[%emt 0:00:00]} 5. Nge2 {[%emt 0:00:03]} Nbd7 {[%emt 0:00:04]} 6. Ng3 {[%emt 0:00:02]} e5 {[%emt 0:00:02]} 7. d5 {[%emt 0:00:01]} a5 {[%emt 0:00:25]} 8. Be2 {[%emt 0:00:06]} Nc5 {[%emt 0:00:01]} 9. h4 {[%emt 0:00:08]} h5 {[%emt 0:00:06]} 10. Bg5 {[%emt 0:00:04]} Bd7 {[%emt 0:00:09]} 11. Qd2 {[%emt 0:00:26]} Qc8 {[%emt 0:00:03]} 12. O-O-O {[%emt 0:00:04]} a4 {[%emt 0:00:14]} 13. Rdf1 {[%emt 0:00:48]} b6 {[%emt 0:02:00]} 14. f4 {[%emt 0:01:14]} Nh7 {[%emt 0:00:22]} 15. f5 {[%emt 0:00:03]} Nxg5 {[%emt 0:00:06]} 16. hxg5 {[%emt 0:00:02]} h4 {[%emt 0:00:32]} 17. f6 {[%emt 0:00:49]} Bf8 {[%emt 0:00:10]} 18. Rh2 {[%emt 0:00:14]} Bg4 {[%emt 0:00:25]} 19. Rfh1 {[%emt 0:00:10]} Bxe2 {[%emt 0:00:01]} 20. Qxe2 {[%emt 0:00:08]} Qa6 {[%emt 0:00:24]} 21. Rxh4 {[%emt 0:00:24]} Rxh4 {[%emt 0:00:10]} 22. Rxh4 {[%emt 0:00:02]} O-O-O {[%emt 0:00:06]} 23. Rh7 {[%emt 0:00:26]} Rd7 {[%emt 0:00:09]} 24. Nh1 {[%emt 0:01:16]} Qa5 {[%emt 0:00:11]} 25. Kc2 {[%emt 0:00:07]} Qb4 {[%emt 0:00:28]} 26. Nf2 {[%emt 0:00:14]} Kb7 {[%emt 0:00:15]} 27. a3 {[%emt 0:02:00]} Qa5 {[%emt 0:00:09]} 28. Nd3 {[%emt 0:00:11]} Nb3 {[%emt 0:00:05]} 29. Qg4 {[%emt 0:00:07]} Nd4+ {[%emt 0:00:08]} 30. Kb1 {[%emt 0:00:03]} Rd8 {[%emt 0:00:06]} 31. Rxf7 {[%emt 0:00:06]} Qa6 {[%emt 0:00:08]} 32. Nb5 {[%emt 0:01:03]} Nxb5 {[%emt 0:00:04]} 33. cxb5 {[%emt 0:00:10]} Qxb5 {[%emt 0:00:01]} 34. Qe2 {[%emt 0:00:06]} Qc4 {[%emt 0:00:16]} 35. Nf4 {[%emt 0:00:41]} Qxe2 {[%emt 0:01:04]} 36. Nxe2 {[%emt 0:00:01]} b5 {[%emt 0:00:01]} 37. Ng1 {[%emt 0:00:09]} Kb6 {[%emt 0:00:03]} 38. Nf3 {[%emt 0:00:01]} c6 {[%emt 0:00:00]} 39. Nh4 {[%emt 0:00:10]} cxd5 {[%emt 0:00:09]} 40. exd5 {[%emt 0:00:12]} Kc5 {[%emt 0:00:26]} 41. Nxg6 {[%emt 0:00:02]} Kxd5 {[%emt 0:00:01]} 42. Nxf8 {[%emt 0:00:09]} Kc4 {[%emt 0:00:33]} 43. g6 {[%emt 0:00:05]} Kb3 {[%emt 0:00:18]} 44. Rc7 {[%emt 0:00:14]} b4 {[%emt 0:00:02]} 45. g7 {[%emt 0:00:01]} 1-0

[Event "HUN-ch Rapid 2019"]
[Site "Ajka"]
[Date "2019.07.21"]
[Round "12.12"]
[White "Popovics, Adam"]
[Black "Horvath, Tamas"]
[Result "1-0"]
[ECO "E39"]
[WhiteElo "2365"]
[BlackElo "2306"]
[Annotator "NA"]
[PlyCount "59"]
[EventDate "2019.07.18"]
[EventType "swiss"]
[EventCountry "HUN"]
[SourceTitle "playchess.com"]
[Source "ChessBase"]
[SourceQuality "1"]
[TimeControl "1200+5"]

1. d4 {[%emt 0:00:03]} Nf6 {[%emt 0:00:04]} 2. c4 {[%emt 0:00:01]} e6 {[%emt 0:00:02]} 3. Nc3 {[%emt 0:00:02]} Bb4 {[%emt 0:00:10]} 4. Qc2 {[%emt 0:00:01]} c5 {[%emt 0:00:17]} 5. dxc5 {[%emt 0:00:04]} O-O {[%emt 0:00:02]} 6. Nf3 {[%emt 0:00:02]} Na6 {[%emt 0:00:06]} 7. g3 {[%emt 0:00:12]} Nxc5 {[%emt 0:00:03]} 8. Bg2 {[%emt 0:00:01]} b6 {[%emt 0:00:24]} 9. O-O {[%emt 0:00:04]} Bxc3 {[%emt 0:00:06]} 10. Qxc3 {[%emt 0:00:03]} Bb7 {[%emt 0:00:07]} 11. b4 {[%emt 0:00:49]} Nce4 {[%emt 0:00:47]} 12. Qd4 {[%emt 0:00:12]} Qc7 {[%emt 0:01:19]} 13. Bb2 {[%emt 0:00:45]} Rac8 {[%emt 0:00:22]} 14. Rac1 {[%emt 0:00:23]} Rfd8 {[%emt 0:01:06]} 15. Qd3 {[%emt 0:04:38]} Ba6 {[%emt 0:01:35]} 16. Qe3 {[%emt 0:01:41]} Bb7 {[%emt 0:01:20]} 17. c5 {[%emt 0:01:37]} bxc5 {[%emt 0:00:11]} 18. bxc5 {[%emt 0:00:01]} Bd5 {[%emt 0:00:27]} 19. Ng5 {[%emt 0:00:47]} Qc6 {[%emt 0:01:57]} 20. Nxe4 {[%emt 0:00:35]} Nxe4 {[%emt 0:00:54]} 21. f3 {[%emt 0:01:21]} Nxc5 {[%emt 0:02:25]} 22. Qg5 {[%emt 0:00:18]} e5 {[%emt 0:00:07]} 23. Bxe5 {[%emt 0:01:12]} Ne6 {[%emt 0:01:14]} 24. Qd2 {[%emt 0:00:41]} Bc4 {[%emt 0:00:29]} 25. f4 {[%emt 0:00:18]} Qb6+ {[%emt 0:00:20]} 26. Kh1 {[%emt 0:00:06]} f6 {[%emt 0:00:14]} 27. Bd6 {[%emt 0:00:08]} Qa6 {[%emt 0:00:20]} 28. Be7 {[%emt 0:00:49]} Re8 {[%emt 0:00:26]} 29. Qxd7 {[%emt 0:00:08]} Kh8 {[%emt 0:00:21]} 30. Bb7 {[%emt 0:00:36]} 1-0

[Event "HUN-ch Rapid 2019"]
[Site "Ajka"]
[Date "2019.07.21"]
[Round "12.13"]
[White "Borhy, Marcell"]
[Black "Dankhazi, Andras"]
[Result "1/2-1/2"]
[ECO "A40"]
[WhiteElo "2382"]
[BlackElo "2277"]
[Annotator "NA"]
[PlyCount "62"]
[EventDate "2019.07.18"]
[EventType "swiss"]
[EventCountry "HUN"]
[SourceTitle "playchess.com"]
[Source "ChessBase"]
[SourceQuality "1"]
[TimeControl "1200+5"]

1. d4 {[%emt 0:00:01]} Nf6 {[%emt 0:00:02]} 2. c4 {[%emt 0:00:06]} e6 {[%emt 0:00:01]} 3. g3 {[%emt 0:00:02]} Bb4+ {[%emt 0:00:02]} 4. Bd2 {[%emt 0:00:01]} Be7 {[%emt 0:00:00]} 5. Nf3 {[%emt 0:00:03]} d5 {[%emt 0:00:52]} 6. Bg2 {[%emt 0:00:02]} O-O {[%emt 0:00:01]} 7. O-O {[%emt 0:00:04]} Nbd7 8. Na3 {[%emt 0:00:36]} Ne4 {[%emt 0:01:47]} 9. Rc1 {[%emt 0:00:07]} Nxd2 {[%emt 0:01:45]} 10. Qxd2 {[%emt 0:00:06]} c6 {[%emt 0:00:37]} 11. cxd5 {[%emt 0:02:18]} exd5 {[%emt 0:00:12]} 12. Nb1 {[%emt 0:00:51]} Bd6 {[%emt 0:00:47]} 13. Nc3 {[%emt 0:00:05]} Qe7 {[%emt 0:00:06]} 14. Qc2 {[%emt 0:00:46]} Nf6 {[%emt 0:00:33]} 15. a3 {[%emt 0:00:29]} Re8 {[%emt 0:01:40]} 16. Rfe1 {[%emt 0:00:22]} Ne4 {[%emt 0:02:52]} 17. Nd2 {[%emt 0:00:31]} Nxd2 {[%emt 0:02:25]} 18. Qxd2 {[%emt 0:00:01]} Bf5 {[%emt 0:00:01]} 19. f3 {[%emt 0:01:38]} Qe3+ {[%emt 0:00:10]} 20. Qxe3 {[%emt 0:00:03]} Rxe3 {[%emt 0:00:01]} 21. Nd1 {[%emt 0:00:15]} Ree8 {[%emt 0:00:11]} 22. Nc3 {[%emt 0:00:07]} Rad8 {[%emt 0:00:38]} 23. e4 {[%emt 0:00:17]} dxe4 {[%emt 0:00:01]} 24. fxe4 {[%emt 0:00:02]} Bd7 {[%emt 0:00:30]} 25. Kh1 {[%emt 0:00:54]} c5 {[%emt 0:00:56]} 26. e5 {[%emt 0:00:13]} cxd4 {[%emt 0:00:02]} 27. exd6 {[%emt 0:00:03]} Rxe1+ {[%emt 0:00:08]} 28. Rxe1 {[%emt 0:00:02]} dxc3 {[%emt 0:00:00]} 29. bxc3 {[%emt 0:00:03]} b6 {[%emt 0:00:37]} 30. Re7 {[%emt 0:01:09]} Kf8 {[%emt 0:00:19]} 31. Bd5 {[%emt 0:00:52]} Be8 {[%emt 0:00:15]} 1/2-1/2

[Event "HUN-ch Rapid 2019"]
[Site "Ajka"]
[Date "2019.07.21"]
[Round "12.14"]
[White "Csiszar, Csaba"]
[Black "Varga, Klara"]
[Result "1-0"]
[ECO "A46"]
[WhiteElo "2432"]
[BlackElo "2146"]
[Annotator "NA"]
[PlyCount "85"]
[EventDate "2019.07.18"]
[EventType "swiss"]
[EventCountry "HUN"]
[SourceTitle "playchess.com"]
[Source "ChessBase"]
[SourceQuality "1"]
[TimeControl "1200+5"]

1. d4 {[%emt 0:00:01]} Nf6 {[%emt 0:00:08]} 2. Nf3 {[%emt 0:00:02]} e6 {[%emt 0:00:01]} 3. e3 {[%emt 0:00:03]} c5 {[%emt 0:00:01]} 4. Bd3 {[%emt 0:00:02]} b6 {[%emt 0:00:01]} 5. O-O {[%emt 0:00:03]} Bb7 {[%emt 0:00:01]} 6. b3 {[%emt 0:00:01]} cxd4 {[%emt 0:00:02]} 7. exd4 {[%emt 0:00:01]} d6 {[%emt 0:00:01]} 8. Bb2 {[%emt 0:00:02]} Nbd7 {[%emt 0:00:01]} 9. Nbd2 {[%emt 0:00:04]} Be7 {[%emt 0:00:01]} 10. c4 {[%emt 0:00:23]} O-O {[%emt 0:00:03]} 11. Qe2 {[%emt 0:00:02]} Re8 {[%emt 0:00:03]} 12. Ng5 {[%emt 0:00:05]} h6 {[%emt 0:00:06]} 13. f4 {[%emt 0:00:02]} Nf8 {[%emt 0:00:53]} 14. Ngf3 {[%emt 0:00:23]} Rc8 {[%emt 0:01:19]} 15. Rae1 {[%emt 0:00:07]} Qd7 {[%emt 0:01:08]} 16. Qf2 {[%emt 0:00:17]} Nh5 {[%emt 0:00:22]} 17. Qe3 {[%emt 0:00:31]} Nh7 {[%emt 0:01:02]} 18. Bb1 {[%emt 0:02:17]} Bf8 {[%emt 0:00:22]} 19. g4 {[%emt 0:00:35]} N5f6 {[%emt 0:00:52]} 20. g5 {[%emt 0:02:23]} Ng4 {[%emt 0:00:19]} 21. Qd3 {[%emt 0:00:14]} g6 {[%emt 0:00:01]} 22. h3 {[%emt 0:00:05]} e5 {[%emt 0:00:14]} 23. d5 {[%emt 0:00:49]} Bg7 {[%emt 0:02:49]} 24. Ne4 {[%emt 0:00:44]} exf4 {[%emt 0:00:21]} 25. Bxg7 {[%emt 0:00:03]} Kxg7 {[%emt 0:00:04]} 26. hxg4 {[%emt 0:00:09]} Qxg4+ {[%emt 0:00:01]} 27. Kf2 {[%emt 0:00:01]} Nxg5 {[%emt 0:01:39]} 28. Nfxg5 {[%emt 0:02:05]} hxg5 {[%emt 0:00:18]} 29. Qc3+ {[%emt 0:00:40]} Re5 {[%emt 0:00:17]} 30. Rh1 {[%emt 0:00:08]} Bxd5 {[%emt 0:01:54]} 31. Reg1 {[%emt 0:01:08]} Qd7 {[%emt 0:01:29]} 32. Rh7+ {[%emt 0:01:36]} Kf8 {[%emt 0:00:16]} 33. Nf6 {[%emt 0:00:15]} Qe6 {[%emt 0:01:03]} 34. Nxd5 {[%emt 0:00:15]} g4 {[%emt 0:01:07]} 35. Nxf4 {[%emt 0:02:42]} Qf6 {[%emt 0:00:25]} 36. Kg3 {[%emt 0:01:29]} Rce8 {[%emt 0:00:21]} 37. Re1 {[%emt 0:01:12]} Kg8 {[%emt 0:01:44]} 38. Rxe5 {[%emt 0:00:48]} dxe5 {[%emt 0:00:10]} 39. Nd5 {[%emt 0:00:11]} Qf1 {[%emt 0:00:34]} 40. Rh2 {[%emt 0:00:04]} Kg7 {[%emt 0:00:48]} 41. Qe3 {[%emt 0:00:09]} Qf3+ {[%emt 0:00:56]} 42. Qxf3 {[%emt 0:00:02]} gxf3 {[%emt 0:00:01]} 43. Kxf3 {[%emt 0:00:01]} 1-0